{"text_format":"3","workbook":"xlsx","n_sheets":4,"sheets":["Inicio","Informe de presupuesto mensual","Gastos mensuales","Datos adicionales"],"not_rendered":{"charts":1,"defined_names":4,"pivot_tables":2},"read":"whole","date_system":"1900"}

{"sheet":"Inicio","index":0,"n_rows":8,"n_cols":2,"rows_kept":8}
[null,"INFORMACIÓN SOBRE ESTA PLANTILLA"]
[null,"Use este libro para realizar un seguimiento de los gastos y crear un presupuesto familiar."]
[null,"Escriba los ingresos previstos y actuales de distintos orígenes en la hoja de cálculo de informe de presupuesto mensual y la cantidad prevista y real destinada a diferentes categorías en la hoja de cálculo de gastos mensuales."]
[null,"El saldo previsto, el saldo actual y la diferencia se calculan automáticamente, así el gráfico de información general sobre el presupuesto y resumen de presupuesto se actualizan en la hoja de cálculo del informe de presupuesto mensual."]
[null,"Puede modificar o escribir una nueva categoría en la tabla en la hoja de cálculo de datos adicionales."]
[null,"Nota: "]
[null,"En la columna A en la hoja de cálculo del INFORME DE PRESUPUESTO MENSUAL y en la celda A1 en hojas de cálculo de GASTOS MENSUALES y DATOS ADICIONALES se proporcionan más instrucciones. Este texto se ha ocultado de forma intencionada. Para eliminar el texto, seleccione la columna A o la celda A1 y después seleccione ELIMINAR. Para mostrar el texto, seleccione la columna A o la celda A1 y después cambie el color de fuente."]
[null,"Para obtener más información sobre las tablas, presione las teclas MAYÚS y F10 dentro de una tabla, seleccione la opción TABLA y, después, TEXTO ALTERNATIVO. En las tablas dinámicas, presione MAYÚS y F10 en una tabla, seleccione OPCIONES DE TABLA DINÁMICA y, después, seleccione la pestaña TEXTO ALTERNATIVO."]

{"sheet":"Informe de presupuesto mensual","index":1,"n_rows":34,"n_cols":14,"rows_kept":34,"merged":[[0,1,0,4],[0,5,0,7],[0,12,0,13],[1,9,5,13],[2,2,2,5],[3,2,3,5],[4,2,4,5],[7,1,10,1],[7,5,10,5],[7,6,10,6],[8,9,31,9],[12,1,16,1],[12,5,16,5],[12,6,16,6],[19,1,34,6]]}
["Cree un informe de presupuesto mensual personal en esta hoja de cálculo. El título de esta hoja de cálculo se encuentra en la celda a la derecha y el subtítulo en la celda J1. Seleccione la celda F1 para ir a la hoja de cálculo de gastos mensuales Encontrará instrucciones útiles sobre cómo usar esta hoja de cálculo en las celdas de esta columna.","Información general del presupuesto",{"$nulls":3},"Gastos mensuales",{"$nulls":3},"Resumen de presupuesto",null,null,"Una espiga de trigo de color verde se encuentra en esta celda."]
["La etiqueta Saldo se encuentra en la celda de la derecha. La segmentación de datos de tabla dinámica para filtrar los datos de tabla se encuentra de la celda J2 a N6. Para seleccionar varias categorías, mantenga presionada la tecla Ctrl.","Saldo",{"$nulls":7},"La segmentación de datos de categoria para filtrar la tabla dinámica siguiente por la categoria seleccionada se encuentra en esta celda."]
["La etiqueta de saldo previsto se encuentra en la celda de la derecha. El saldo previsto se calcula automáticamente en la celda G3.","SALDO PREVISTO","(Ingresos previstos menos gastos)",{"$nulls":3},{"$f":"D17-SUM(DetallesDePresupuesto[Costo previsto])","v":{"v":1585,"d":"1,585 €"}}]
["La etiqueta de saldo actual se encuentra en la celda de la derecha. El saldo actual se calcula automáticamente en la celda G4.","SALDO ACTUAL","(Actual menos gastos)",{"$nulls":3},{"$f":"D11-SUM(DetallesDePresupuesto[Costo real])","v":{"v":1740,"d":"1,740 €"}}]
["La etiqueta de diferencia se encuentra en la celda de la derecha. La diferencia se calcula automáticamente en la celda G5. La instrucción siguiente se encuentra en la celda A7.","Diferencia","(Actual menos previsto)",{"$nulls":3},{"$f":"G4-G3","v":{"v":155,"d":"155 €"}}]
[]
["La etiqueta de ingresos se encuentra en la celda de la derecha, la etiqueta de gastos en la celda F7 y la información de resumen de presupuesto en la celda J7.","Ingresos",{"$nulls":3},"Gastos",{"$nulls":3},"Seleccione la tabla dinámica siguiente y luego Actualizar  en la pestaña Analizar para actualizar."]
["La etiqueta de ingresos actuales se encuentra en la celda de la derecha y la etiqueta de gastos reales en la celda F8. Escriba Ingreso 1 en la celda D8. Los gastos actuales se calculan automáticamente en la celda G8.","ACTUAL","Ingreso 1",{"v":5800,"d":"5,800 €"},null,"ACTUAL",{"$f":"SUM(DetallesDePresupuesto[Costo real])","v":{"v":7860,"d":"7,860 €"}}]
["Escriba Ingreso 2 en la celda D9. La imagen se encuentra en la celda J9. Tabla dinámica empieza en la celda K9. Para actualizar la tabla dinámica, seleccione Actualizar en la pestaña Analizar.",null,"Ingreso 2",{"v":2300,"d":"2,300 €"},{"$nulls":5},"La imagen se encuentra en esta celda.","Categoria","Costo previsto","Costo real","Diferencia"]
["Introduzca los ingresos adicionales en la celda D10.",null,"Ingresos adicionales",{"v":1500,"d":"1,500 €"},{"$nulls":6},"Niños",{"v":140,"d":"140 €"},{"v":140,"d":"140 €"},{"v":0,"d":"0 €"}]
["La etiqueta de ingresos totales se encuentra en la celda C11 y su valor se calcula automáticamente en la celda D11. La instrucción siguiente se encuentra en la celda A13.",null,"Ingresos totales",{"$f":"SUM(D8:D10)","v":{"v":9600,"d":"9,600 €"}}]
[{"$nulls":10},"Entretenimiento",{"v":400,"d":"400 €"},{"v":358,"d":"358 €"},{"v":42,"d":"42 €"}]
["La etiqueta de ingresos previstos se encuentra en la celda de la derecha y la etiqueta de gastos reales en la celda F13. Los gastos previstos se calculan automáticamente en la celda G13.","PREVISTO",{"$nulls":3},"PREVISTO",{"$f":"SUM(DetallesDePresupuesto[Costo previsto])","v":{"v":7915,"d":"7,915 €"}}]
["Escriba Ingreso previsto 1 en la celda D14.",null,"Ingreso 1",{"v":6000,"d":"6,000 €"},{"$nulls":6},"Comida",{"v":1100,"d":"1,100 €"},{"v":1320,"d":"1,320 €"},{"v":-220,"d":"-220 €"}]
["Escriba Ingreso previsto 2 en la celda D15.",null,"Ingreso 2",{"v":1000,"d":"1,000 €"}]
["Escriba Ingresos adicionales en la celda D16.",null,"Ingresos adicionales",{"v":2500,"d":"2,500 €"},{"$nulls":6},"Regalos y beneficencia",{"v":100,"d":"100 €"},{"v":125,"d":"125 €"},{"v":-25,"d":"-25 €"}]
["La etiqueta de ingresos totales se encuentra en la celda C17 y su valor se calcula automáticamente en la celda D17. La instrucción siguiente se encuentra en la celda A20.",null,"Ingresos totales",{"$f":"SUM(D14:D16)","v":{"v":9500,"d":"9,500 €"}}]
[{"$nulls":10},"Alojamiento",{"v":2830,"d":"2,830 €"},{"v":2702,"d":"2,702 €"},{"v":128,"d":"128 €"}]
[]
["El gráfico circular en el que se muestra el porcentaje de gastos por categoría se encuentra en la celda de la derecha.","El gráfico circular en el que se muestra el porcentaje de gastos de cada categoría se encuentra en esta celda.",{"$nulls":8},"Seguro",{"v":900,"d":"900 €"},{"v":900,"d":"900 €"},{"v":0,"d":"0 €"}]
[]
[{"$nulls":10},"Préstamos",{"v":200,"d":"200 €"},{"v":200,"d":"200 €"},{"v":0,"d":"0 €"}]
[]
[{"$nulls":10},"Cuidado personal",{"v":150,"d":"150 €"},{"v":140,"d":"140 €"},{"v":10,"d":"10 €"}]
[]
[{"$nulls":10},"Mascotas",{"v":170,"d":"170 €"},{"v":100,"d":"100 €"},{"v":70,"d":"70 €"}]
[]
[{"$nulls":10},"Ahorros o inversiones",{"v":200,"d":"200 €"},{"v":200,"d":"200 €"},{"v":0,"d":"0 €"}]
[]
[{"$nulls":10},"Impuestos",{"v":300,"d":"300 €"},{"v":300,"d":"300 €"},{"v":0,"d":"0 €"}]
[]
[{"$nulls":10},"Transporte",{"v":1425,"d":"1,425 €"},{"v":1375,"d":"1,375 €"},{"v":50,"d":"50 €"}]
[]
[{"$nulls":10},"Total general",{"v":7915,"d":"7,915 €"},{"v":7860,"d":"7,860 €"},{"v":55,"d":"55 €"}]

{"sheet":"Gastos mensuales","index":2,"n_rows":62,"n_cols":7,"rows_kept":62,"merged":[[0,1,0,4],[0,5,0,6]]}
["Calcule los gastos mensuales en esta hoja de cálculo. El título de esta hoja de cálculo se encuentra en la celda de la derecha. Seleccione la celda F1 para ir a la hoja de cálculo de informe de presupuesto mensual.","Gastos mensuales",{"$nulls":3},"Informe de presupuesto mensual"]
[" Escriba los datos en la tabla de detalles de presupuesto que comienza en la celda de la derecha.","Descripción","Categoría","Costo previsto","Costo real","Diferencia","Información general de costo real"]
[null,"Actividades extracurriculares","Niños",{"v":40,"d":"40 €"},{"v":40,"d":"40 €"},{"$f":"DetallesDePresupuesto[[#This Row],[Costo previsto]]-DetallesDePresupuesto[[#This Row],[Costo real]]","v":{"v":0,"d":"0 €"}},{"$f":"DetallesDePresupuesto[[#This Row],[Costo real]]","v":{"v":40,"d":"40 €"}}]
[null,"Medicinas","Niños",null,null,{"$f":"DetallesDePresupuesto[[#This Row],[Costo previsto]]-DetallesDePresupuesto[[#This Row],[Costo real]]","v":{"v":0,"d":"0 €"}},{"$f":"DetallesDePresupuesto[[#This Row],[Costo real]]","v":{"v":0,"d":"0 €"}}]
[null,"Material escolar","Niños",null,null,{"$f":"DetallesDePresupuesto[[#This Row],[Costo previsto]]-DetallesDePresupuesto[[#This Row],[Costo real]]","v":{"v":0,"d":"0 €"}},{"$f":"DetallesDePresupuesto[[#This Row],[Costo real]]","v":{"v":0,"d":"0 €"}}]
[null,"Matrícula escolar","Niños",{"v":100,"d":"100 €"},{"v":100,"d":"100 €"},{"$f":"DetallesDePresupuesto[[#This Row],[Costo previsto]]-DetallesDePresupuesto[[#This Row],[Costo real]]","v":{"v":0,"d":"0 €"}},{"$f":"DetallesDePresupuesto[[#This Row],[Costo real]]","v":{"v":100,"d":"100 €"}}]
[null,"Conciertos","Entretenimiento",{"v":50,"d":"50 €"},{"v":40,"d":"40 €"},{"$f":"DetallesDePresupuesto[[#This Row],[Costo previsto]]-DetallesDePresupuesto[[#This Row],[Costo real]]","v":{"v":10,"d":"10 €"}},{"$f":"DetallesDePresupuesto[[#This Row],[Costo real]]","v":{"v":40,"d":"40 €"}}]
[null,"Teatro","Entretenimiento",{"v":200,"d":"200 €"},{"v":150,"d":"150 €"},{"$f":"DetallesDePresupuesto[[#This Row],[Costo previsto]]-DetallesDePresupuesto[[#This Row],[Costo real]]","v":{"v":50,"d":"50 €"}},{"$f":"DetallesDePresupuesto[[#This Row],[Costo real]]","v":{"v":150,"d":"150 €"}}]
[null,"Películas","Entretenimiento",{"v":50,"d":"50 €"},{"v":28,"d":"28 €"},{"$f":"DetallesDePresupuesto[[#This Row],[Costo previsto]]-DetallesDePresupuesto[[#This Row],[Costo real]]","v":{"v":22,"d":"22 €"}},{"$f":"DetallesDePresupuesto[[#This Row],[Costo real]]","v":{"v":28,"d":"28 €"}}]
[null,"Música (CD, descargas, etcetera).","Entretenimiento",{"v":50,"d":"50 €"},{"v":30,"d":"30 €"},{"$f":"DetallesDePresupuesto[[#This Row],[Costo previsto]]-DetallesDePresupuesto[[#This Row],[Costo real]]","v":{"v":20,"d":"20 €"}},{"$f":"DetallesDePresupuesto[[#This Row],[Costo real]]","v":{"v":30,"d":"30 €"}}]
[null,"Eventos deportivos","Entretenimiento",{"v":0,"d":"0 €"},{"v":40,"d":"40 €"},{"$f":"DetallesDePresupuesto[[#This Row],[Costo previsto]]-DetallesDePresupuesto[[#This Row],[Costo real]]","v":{"v":-40,"d":"-40 €"}},{"$f":"DetallesDePresupuesto[[#This Row],[Costo real]]","v":{"v":40,"d":"40 €"}}]
[null,"Compra de vídeo o DVD","Entretenimiento",{"v":20,"d":"20 €"},{"v":50,"d":"50 €"},{"$f":"DetallesDePresupuesto[[#This Row],[Costo previsto]]-DetallesDePresupuesto[[#This Row],[Costo real]]","v":{"v":-30,"d":"-30 €"}},{"$f":"DetallesDePresupuesto[[#This Row],[Costo real]]","v":{"v":50,"d":"50 €"}}]
[null,"Alquiler de vídeo o DVD ","Entretenimiento",{"v":30,"d":"30 €"},{"v":20,"d":"20 €"},{"$f":"DetallesDePresupuesto[[#This Row],[Costo previsto]]-DetallesDePresupuesto[[#This Row],[Costo real]]","v":{"v":10,"d":"10 €"}},{"$f":"DetallesDePresupuesto[[#This Row],[Costo real]]","v":{"v":20,"d":"20 €"}}]
[null,"Restaurantes","Comida",{"v":1000,"d":"1,000 €"},{"v":1200,"d":"1,200 €"},{"$f":"DetallesDePresupuesto[[#This Row],[Costo previsto]]-DetallesDePresupuesto[[#This Row],[Costo real]]","v":{"v":-200,"d":"-200 €"}},{"$f":"DetallesDePresupuesto[[#This Row],[Costo real]]","v":{"v":1200,"d":"1,200 €"}}]
[null,"Provisiones","Comida",{"v":100,"d":"100 €"},{"v":120,"d":"120 €"},{"$f":"DetallesDePresupuesto[[#This Row],[Costo previsto]]-DetallesDePresupuesto[[#This Row],[Costo real]]","v":{"v":-20,"d":"-20 €"}},{"$f":"DetallesDePresupuesto[[#This Row],[Costo real]]","v":{"v":120,"d":"120 €"}}]
[null,"Organización benéfica 1","Regalos y beneficencia",{"v":75,"d":"75 €"},{"v":100,"d":"100 €"},{"$f":"DetallesDePresupuesto[[#This Row],[Costo previsto]]-DetallesDePresupuesto[[#This Row],[Costo real]]","v":{"v":-25,"d":"-25 €"}},{"$f":"DetallesDePresupuesto[[#This Row],[Costo real]]","v":{"v":100,"d":"100 €"}}]
[null,"Organización benéfica 2","Regalos y beneficencia",{"v":25,"d":"25 €"},{"v":25,"d":"25 €"},{"$f":"DetallesDePresupuesto[[#This Row],[Costo previsto]]-DetallesDePresupuesto[[#This Row],[Costo real]]","v":{"v":0,"d":"0 €"}},{"$f":"DetallesDePresupuesto[[#This Row],[Costo real]]","v":{"v":25,"d":"25 €"}}]
[null,"Regalo 1","Regalos y beneficencia",null,null,{"$f":"DetallesDePresupuesto[[#This Row],[Costo previsto]]-DetallesDePresupuesto[[#This Row],[Costo real]]","v":{"v":0,"d":"0 €"}},{"$f":"DetallesDePresupuesto[[#This Row],[Costo real]]","v":{"v":0,"d":"0 €"}}]
[null,"Regalo 2","Regalos y beneficencia",null,null,{"$f":"DetallesDePresupuesto[[#This Row],[Costo previsto]]-DetallesDePresupuesto[[#This Row],[Costo real]]","v":{"v":0,"d":"0 €"}},{"$f":"DetallesDePresupuesto[[#This Row],[Costo real]]","v":{"v":0,"d":"0 €"}}]
[null,"Cable o satélite","Alojamiento",{"v":100,"d":"100 €"},{"v":100,"d":"100 €"},{"$f":"DetallesDePresupuesto[[#This Row],[Costo previsto]]-DetallesDePresupuesto[[#This Row],[Costo real]]","v":{"v":0,"d":"0 €"}},{"$f":"DetallesDePresupuesto[[#This Row],[Costo real]]","v":{"v":100,"d":"100 €"}}]
[null,"Electricidad","Alojamiento",{"v":45,"d":"45 €"},{"v":50,"d":"50 €"},{"$f":"DetallesDePresupuesto[[#This Row],[Costo previsto]]-DetallesDePresupuesto[[#This Row],[Costo real]]","v":{"v":-5,"d":"-5 €"}},{"$f":"DetallesDePresupuesto[[#This Row],[Costo real]]","v":{"v":50,"d":"50 €"}}]
[null,"Gas","Alojamiento",{"v":300,"d":"300 €"},{"v":400,"d":"400 €"},{"$f":"DetallesDePresupuesto[[#This Row],[Costo previsto]]-DetallesDePresupuesto[[#This Row],[Costo real]]","v":{"v":-100,"d":"-100 €"}},{"$f":"DetallesDePresupuesto[[#This Row],[Costo real]]","v":{"v":400,"d":"400 €"}}]
[null,"Servicios de limpieza","Alojamiento",{"v":200,"d":"200 €"},null,{"$f":"DetallesDePresupuesto[[#This Row],[Costo previsto]]-DetallesDePresupuesto[[#This Row],[Costo real]]","v":{"v":200,"d":"200 €"}},{"$f":"DetallesDePresupuesto[[#This Row],[Costo real]]","v":{"v":0,"d":"0 €"}}]
[null,"Mantenimiento","Alojamiento",{"v":200,"d":"200 €"},{"v":150,"d":"150 €"},{"$f":"DetallesDePresupuesto[[#This Row],[Costo previsto]]-DetallesDePresupuesto[[#This Row],[Costo real]]","v":{"v":50,"d":"50 €"}},{"$f":"DetallesDePresupuesto[[#This Row],[Costo real]]","v":{"v":150,"d":"150 €"}}]
[null,"Hipoteca o alquiler","Alojamiento",{"v":1700,"d":"1,700 €"},{"v":1700,"d":"1,700 €"},{"$f":"DetallesDePresupuesto[[#This Row],[Costo previsto]]-DetallesDePresupuesto[[#This Row],[Costo real]]","v":{"v":0,"d":"0 €"}},{"$f":"DetallesDePresupuesto[[#This Row],[Costo real]]","v":{"v":1700,"d":"1,700 €"}}]
[null,"Petróleo y gas natural","Alojamiento",null,null,{"$f":"DetallesDePresupuesto[[#This Row],[Costo previsto]]-DetallesDePresupuesto[[#This Row],[Costo real]]","v":{"v":0,"d":"0 €"}},{"$f":"DetallesDePresupuesto[[#This Row],[Costo real]]","v":{"v":0,"d":"0 €"}}]
[null,"Servicio online y de Internet","Alojamiento",{"v":100,"d":"100 €"},{"v":100,"d":"100 €"},{"$f":"DetallesDePresupuesto[[#This Row],[Costo previsto]]-DetallesDePresupuesto[[#This Row],[Costo real]]","v":{"v":0,"d":"0 €"}},{"$f":"DetallesDePresupuesto[[#This Row],[Costo real]]","v":{"v":100,"d":"100 €"}}]
[null,"Teléfono (móvil)","Alojamiento",{"v":60,"d":"60 €"},{"v":60,"d":"60 €"},{"$f":"DetallesDePresupuesto[[#This Row],[Costo previsto]]-DetallesDePresupuesto[[#This Row],[Costo real]]","v":{"v":0,"d":"0 €"}},{"$f":"DetallesDePresupuesto[[#This Row],[Costo real]]","v":{"v":60,"d":"60 €"}}]
[null,"Teléfono (casa)","Alojamiento",{"v":35,"d":"35 €"},{"v":39,"d":"39 €"},{"$f":"DetallesDePresupuesto[[#This Row],[Costo previsto]]-DetallesDePresupuesto[[#This Row],[Costo real]]","v":{"v":-4,"d":"-4 €"}},{"$f":"DetallesDePresupuesto[[#This Row],[Costo real]]","v":{"v":39,"d":"39 €"}}]
[null,"Artículos de consumo","Alojamiento",{"v":40,"d":"40 €"},{"v":55,"d":"55 €"},{"$f":"DetallesDePresupuesto[[#This Row],[Costo previsto]]-DetallesDePresupuesto[[#This Row],[Costo real]]","v":{"v":-15,"d":"-15 €"}},{"$f":"DetallesDePresupuesto[[#This Row],[Costo real]]","v":{"v":55,"d":"55 €"}}]
[null,"Reciclaje y eliminación de residuos","Alojamiento",{"v":25,"d":"25 €"},{"v":22,"d":"22 €"},{"$f":"DetallesDePresupuesto[[#This Row],[Costo previsto]]-DetallesDePresupuesto[[#This Row],[Costo real]]","v":{"v":3,"d":"3 €"}},{"$f":"DetallesDePresupuesto[[#This Row],[Costo real]]","v":{"v":22,"d":"22 €"}}]
[null,"Agua y alcantarillado","Alojamiento",{"v":25,"d":"25 €"},{"v":26,"d":"26 €"},{"$f":"DetallesDePresupuesto[[#This Row],[Costo previsto]]-DetallesDePresupuesto[[#This Row],[Costo real]]","v":{"v":-1,"d":"-1 €"}},{"$f":"DetallesDePresupuesto[[#This Row],[Costo real]]","v":{"v":26,"d":"26 €"}}]
[null,"Salud","Seguro",{"v":400,"d":"400 €"},{"v":400,"d":"400 €"},{"$f":"DetallesDePresupuesto[[#This Row],[Costo previsto]]-DetallesDePresupuesto[[#This Row],[Costo real]]","v":{"v":0,"d":"0 €"}},{"$f":"DetallesDePresupuesto[[#This Row],[Costo real]]","v":{"v":400,"d":"400 €"}}]
[null,"Hogar","Seguro",{"v":400,"d":"400 €"},{"v":400,"d":"400 €"},{"$f":"DetallesDePresupuesto[[#This Row],[Costo previsto]]-DetallesDePresupuesto[[#This Row],[Costo real]]","v":{"v":0,"d":"0 €"}},{"$f":"DetallesDePresupuesto[[#This Row],[Costo real]]","v":{"v":400,"d":"400 €"}}]
[null,"Vida","Seguro",{"v":100,"d":"100 €"},{"v":100,"d":"100 €"},{"$f":"DetallesDePresupuesto[[#This Row],[Costo previsto]]-DetallesDePresupuesto[[#This Row],[Costo real]]","v":{"v":0,"d":"0 €"}},{"$f":"DetallesDePresupuesto[[#This Row],[Costo real]]","v":{"v":100,"d":"100 €"}}]
[null,"Tarjeta de crédito 1","Préstamos",{"v":200,"d":"200 €"},{"v":200,"d":"200 €"},{"$f":"DetallesDePresupuesto[[#This Row],[Costo previsto]]-DetallesDePresupuesto[[#This Row],[Costo real]]","v":{"v":0,"d":"0 €"}},{"$f":"DetallesDePresupuesto[[#This Row],[Costo real]]","v":{"v":200,"d":"200 €"}}]
[null,"Tarjeta de crédito 2","Préstamos",null,null,{"$f":"DetallesDePresupuesto[[#This Row],[Costo previsto]]-DetallesDePresupuesto[[#This Row],[Costo real]]","v":{"v":0,"d":"0 €"}},{"$f":"DetallesDePresupuesto[[#This Row],[Costo real]]","v":{"v":0,"d":"0 €"}}]
[null,"Tarjeta de crédito 3","Préstamos",null,null,{"$f":"DetallesDePresupuesto[[#This Row],[Costo previsto]]-DetallesDePresupuesto[[#This Row],[Costo real]]","v":{"v":0,"d":"0 €"}},{"$f":"DetallesDePresupuesto[[#This Row],[Costo real]]","v":{"v":0,"d":"0 €"}}]
[null,"Personal","Préstamos",null,null,{"$f":"DetallesDePresupuesto[[#This Row],[Costo previsto]]-DetallesDePresupuesto[[#This Row],[Costo real]]","v":{"v":0,"d":"0 €"}},{"$f":"DetallesDePresupuesto[[#This Row],[Costo real]]","v":{"v":0,"d":"0 €"}}]
[null,"Estudiante","Préstamos",null,null,{"$f":"DetallesDePresupuesto[[#This Row],[Costo previsto]]-DetallesDePresupuesto[[#This Row],[Costo real]]","v":{"v":0,"d":"0 €"}},{"$f":"DetallesDePresupuesto[[#This Row],[Costo real]]","v":{"v":0,"d":"0 €"}}]
[null,"Ropa","Cuidado personal",{"v":150,"d":"150 €"},{"v":140,"d":"140 €"},{"$f":"DetallesDePresupuesto[[#This Row],[Costo previsto]]-DetallesDePresupuesto[[#This Row],[Costo real]]","v":{"v":10,"d":"10 €"}},{"$f":"DetallesDePresupuesto[[#This Row],[Costo real]]","v":{"v":140,"d":"140 €"}}]
[null,"Tintorería","Cuidado personal",null,null,{"$f":"DetallesDePresupuesto[[#This Row],[Costo previsto]]-DetallesDePresupuesto[[#This Row],[Costo real]]","v":{"v":0,"d":"0 €"}},{"$f":"DetallesDePresupuesto[[#This Row],[Costo real]]","v":{"v":0,"d":"0 €"}}]
[null,"Pelo y uñas","Cuidado personal",null,null,{"$f":"DetallesDePresupuesto[[#This Row],[Costo previsto]]-DetallesDePresupuesto[[#This Row],[Costo real]]","v":{"v":0,"d":"0 €"}},{"$f":"DetallesDePresupuesto[[#This Row],[Costo real]]","v":{"v":0,"d":"0 €"}}]
[null,"Gimnasio","Cuidado personal",null,null,{"$f":"DetallesDePresupuesto[[#This Row],[Costo previsto]]-DetallesDePresupuesto[[#This Row],[Costo real]]","v":{"v":0,"d":"0 €"}},{"$f":"DetallesDePresupuesto[[#This Row],[Costo real]]","v":{"v":0,"d":"0 €"}}]
[null,"Medicinas","Cuidado personal",null,null,{"$f":"DetallesDePresupuesto[[#This Row],[Costo previsto]]-DetallesDePresupuesto[[#This Row],[Costo real]]","v":{"v":0,"d":"0 €"}},{"$f":"DetallesDePresupuesto[[#This Row],[Costo real]]","v":{"v":0,"d":"0 €"}}]
[null,"Comida","Mascotas",{"v":150,"d":"150 €"},{"v":75,"d":"75 €"},{"$f":"DetallesDePresupuesto[[#This Row],[Costo previsto]]-DetallesDePresupuesto[[#This Row],[Costo real]]","v":{"v":75,"d":"75 €"}},{"$f":"DetallesDePresupuesto[[#This Row],[Costo real]]","v":{"v":75,"d":"75 €"}}]
[null,"Aseo","Mascotas",{"v":20,"d":"20 €"},{"v":25,"d":"25 €"},{"$f":"DetallesDePresupuesto[[#This Row],[Costo previsto]]-DetallesDePresupuesto[[#This Row],[Costo real]]","v":{"v":-5,"d":"-5 €"}},{"$f":"DetallesDePresupuesto[[#This Row],[Costo real]]","v":{"v":25,"d":"25 €"}}]
[null,"Medicinas","Mascotas",null,null,{"$f":"DetallesDePresupuesto[[#This Row],[Costo previsto]]-DetallesDePresupuesto[[#This Row],[Costo real]]","v":{"v":0,"d":"0 €"}},{"$f":"DetallesDePresupuesto[[#This Row],[Costo real]]","v":{"v":0,"d":"0 €"}}]
[null,"Juguetes","Mascotas",null,null,{"$f":"DetallesDePresupuesto[[#This Row],[Costo previsto]]-DetallesDePresupuesto[[#This Row],[Costo real]]","v":{"v":0,"d":"0 €"}},{"$f":"DetallesDePresupuesto[[#This Row],[Costo real]]","v":{"v":0,"d":"0 €"}}]
[null,"Cuenta de inversión","Ahorros o inversiones",{"v":200,"d":"200 €"},{"v":200,"d":"200 €"},{"$f":"DetallesDePresupuesto[[#This Row],[Costo previsto]]-DetallesDePresupuesto[[#This Row],[Costo real]]","v":{"v":0,"d":"0 €"}},{"$f":"DetallesDePresupuesto[[#This Row],[Costo real]]","v":{"v":200,"d":"200 €"}}]
[null,"Cuenta de jubilación","Ahorros o inversiones",null,null,{"$f":"DetallesDePresupuesto[[#This Row],[Costo previsto]]-DetallesDePresupuesto[[#This Row],[Costo real]]","v":{"v":0,"d":"0 €"}},{"$f":"DetallesDePresupuesto[[#This Row],[Costo real]]","v":{"v":0,"d":"0 €"}}]
[null,"Federales","Impuestos",{"v":300,"d":"300 €"},{"v":300,"d":"300 €"},{"$f":"DetallesDePresupuesto[[#This Row],[Costo previsto]]-DetallesDePresupuesto[[#This Row],[Costo real]]","v":{"v":0,"d":"0 €"}},{"$f":"DetallesDePresupuesto[[#This Row],[Costo real]]","v":{"v":300,"d":"300 €"}}]
[null,"Locales","Impuestos",null,null,{"$f":"DetallesDePresupuesto[[#This Row],[Costo previsto]]-DetallesDePresupuesto[[#This Row],[Costo real]]","v":{"v":0,"d":"0 €"}},{"$f":"DetallesDePresupuesto[[#This Row],[Costo real]]","v":{"v":0,"d":"0 €"}}]
[null,"Estatales","Impuestos",null,null,{"$f":"DetallesDePresupuesto[[#This Row],[Costo previsto]]-DetallesDePresupuesto[[#This Row],[Costo real]]","v":{"v":0,"d":"0 €"}},{"$f":"DetallesDePresupuesto[[#This Row],[Costo real]]","v":{"v":0,"d":"0 €"}}]
[null,"Gastos de taxi o autobús","Transporte",{"v":100,"d":"100 €"},{"v":150,"d":"150 €"},{"$f":"DetallesDePresupuesto[[#This Row],[Costo previsto]]-DetallesDePresupuesto[[#This Row],[Costo real]]","v":{"v":-50,"d":"-50 €"}},{"$f":"DetallesDePresupuesto[[#This Row],[Costo real]]","v":{"v":150,"d":"150 €"}}]
[null,"Combustible","Transporte",{"v":450,"d":"450 €"},{"v":400,"d":"400 €"},{"$f":"DetallesDePresupuesto[[#This Row],[Costo previsto]]-DetallesDePresupuesto[[#This Row],[Costo real]]","v":{"v":50,"d":"50 €"}},{"$f":"DetallesDePresupuesto[[#This Row],[Costo real]]","v":{"v":400,"d":"400 €"}}]
[null,"Seguro","Transporte",{"v":300,"d":"300 €"},{"v":300,"d":"300 €"},{"$f":"DetallesDePresupuesto[[#This Row],[Costo previsto]]-DetallesDePresupuesto[[#This Row],[Costo real]]","v":{"v":0,"d":"0 €"}},{"$f":"DetallesDePresupuesto[[#This Row],[Costo real]]","v":{"v":300,"d":"300 €"}}]
[null,"Licencias ","Transporte",{"v":25,"d":"25 €"},{"v":25,"d":"25 €"},{"$f":"DetallesDePresupuesto[[#This Row],[Costo previsto]]-DetallesDePresupuesto[[#This Row],[Costo real]]","v":{"v":0,"d":"0 €"}},{"$f":"DetallesDePresupuesto[[#This Row],[Costo real]]","v":{"v":25,"d":"25 €"}}]
[null,"Mantenimiento","Transporte",{"v":100,"d":"100 €"},{"v":50,"d":"50 €"},{"$f":"DetallesDePresupuesto[[#This Row],[Costo previsto]]-DetallesDePresupuesto[[#This Row],[Costo real]]","v":{"v":50,"d":"50 €"}},{"$f":"DetallesDePresupuesto[[#This Row],[Costo real]]","v":{"v":50,"d":"50 €"}}]
[null,"Gastos de aparcamiento","Transporte",null,null,{"$f":"DetallesDePresupuesto[[#This Row],[Costo previsto]]-DetallesDePresupuesto[[#This Row],[Costo real]]","v":{"v":0,"d":"0 €"}},{"$f":"DetallesDePresupuesto[[#This Row],[Costo real]]","v":{"v":0,"d":"0 €"}}]
[null,"Pago del vehículo","Transporte",{"v":450,"d":"450 €"},{"v":450,"d":"450 €"},{"$f":"DetallesDePresupuesto[[#This Row],[Costo previsto]]-DetallesDePresupuesto[[#This Row],[Costo real]]","v":{"v":0,"d":"0 €"}},{"$f":"DetallesDePresupuesto[[#This Row],[Costo real]]","v":{"v":450,"d":"450 €"}}]
[null,"Total",null,{"$f":"SUBTOTAL(109,DetallesDePresupuesto[Costo previsto])","v":{"v":7915,"d":"7,915 €"}},{"$f":"SUBTOTAL(109,DetallesDePresupuesto[Costo real])","v":{"v":7860,"d":"7,860 €"}},{"$f":"SUBTOTAL(109,DetallesDePresupuesto[Diferencia])","v":{"v":55,"d":"55 €"}}]

{"sheet":"Datos adicionales","index":3,"n_rows":15,"n_cols":5,"rows_kept":15}
["Use esta hoja de cálculo para modificar la lista desplegable de columnas de Categoria en la tabla de detalles de presupuesto de la hoja de cálculo de gastos mensuales. Para ello, modifique o escriba la nueva categoría en la tabla de búsqueda de categoría de presupuesto a partir de la celda E2. La tabla dinámica vinculada al gráfico de información general del presupuesto en la hoja de cálculo del informe de presupuesto mensual empieza en la celda B2.","Tabla dinámica para el gráfico de información general del presupuesto",null,null,"Lista de búsqueda de categoría de detalles de presupuesto"]
[null,"Categoria","Costo",null,"Búsqueda de categoría de presupuesto"]
[null,"Niños",{"v":140,"d":"140 €"},null,"Niños"]
[null,"Entretenimiento",{"v":358,"d":"358 €"},null,"Entretenimiento"]
[null,"Comida",{"v":1320,"d":"1,320 €"},null,"Comida"]
[null,"Regalos y beneficencia",{"v":125,"d":"125 €"},null,"Regalos y beneficencia"]
[null,"Alojamiento",{"v":2702,"d":"2,702 €"},null,"Alojamiento"]
[null,"Seguro",{"v":900,"d":"900 €"},null,"Seguro"]
[null,"Préstamos",{"v":200,"d":"200 €"},null,"Préstamos"]
[null,"Cuidado personal",{"v":140,"d":"140 €"},null,"Cuidado personal"]
[null,"Mascotas",{"v":100,"d":"100 €"},null,"Mascotas"]
[null,"Ahorros o inversiones",{"v":200,"d":"200 €"},null,"Ahorros o inversiones"]
[null,"Impuestos",{"v":300,"d":"300 €"},null,"Impuestos"]
[null,"Transporte",{"v":1375,"d":"1,375 €"},null,"Transporte"]
[null,"Total general",{"v":7860,"d":"7,860 €"}]